bitfinex/quotes_SOLUSD_20251124
["timestamp","ask_amount","ask_price","bid_price","bid_amount"]
[1764003109782,7.72123719,133.98,133.95,8.1752315]
[1764003112199,8.39123719,133.99,133.95,8.1752315]
[1764003112881,8.44123719,133.99,133.95,8.1652315]
[1764003113268,0.72,133.99,133.95,8.1652315]
[1764003113587,8.44123719,133.99,133.95,8.1652315]
[1764003113784,7.72123719,134.0,133.96,0.7]
[1764003113984,7.72123719,134.02,133.96,8.42123719]
[1764003114503,7.72123719,134.01,133.96,8.42123719]
[1764003115025,0.72,134.0,133.96,10.63098926]
[1764003115312,8.44123719,134.01,133.96,9.93098926]
[1764003115522,7.72123719,134.0,133.96,10.63098926]
[1764003115678,7.72123719,134.0,133.97,7.46435769]
[1764003115874,7.72123719,134.0,133.97,8.16435769]
[1764003116483,8.44123719,134.01,133.97,8.16435769]
[1764003117405,8.44123719,134.01,133.97,7.46435769]
[1764003117406,0.72,134.0,133.97,7.46435769]
[1764003117577,8.44123719,134.0,133.97,7.46435769]
[1764003117783,7.72123719,133.98,133.92,0.2]
[1764003117981,7.72123719,133.97,133.93,0.7]
[1764003118299,7.72123719,133.95,133.92,13.34882769]
[1764003118480,7.72123719,133.96,133.92,21.51590155]
[1764003118975,7.72123719,133.96,133.92,20.81590155]
[1764003119175,7.72123719,133.96,133.93,0.7]
[1764003119372,7.72123719,133.96,133.92,7.66707386]
[1764003119594,7.72123719,133.96,133.92,8.36707386]
[1764003119595,8.44123719,133.96,133.92,8.36707386]
[1764003119982,7.72123719,133.95,133.92,7.66707386]
[1764003120186,8.44123719,133.95,133.92,7.66707386]
[1764003120408,7.72123719,133.93,133.92,0.2]
[1764003120786,8.44123719,133.93,133.92,0.2]
[1764003122879,16.16247438,133.93,133.92,0.2]
[1764003123077,16.16247438,133.93,133.89,0.2]
[1764003123078,16.308864,133.9,133.89,0.2]
[1764003123296,16.308864,133.9,133.88,0.2]
[1764003123297,27.39010119,133.9,133.88,0.2]
[1764003123576,8.44123719,133.89,133.88,0.2]
[1764003123776,24.75010119,133.89,133.88,0.2]
[1764003124500,0.72,133.91,133.88,0.2]
[1764003124710,0.72,133.98,133.9,7.72123719]
[1764003124889,7.72123719,133.96,133.91,17.65222645]
[1764003125073,7.72123719,133.96,133.91,9.93098926]
[1764003125279,7.72123719,133.99,133.93,17.65222645]
[1764003125491,7.72123719,133.99,133.94,0.7]
[1764003125694,7.72123719,133.98,133.94,0.7]
[1764003125906,7.72123719,133.99,133.95,7.46547219]
[1764003126204,7.72123719,133.97,133.94,0.7]
[1764003126391,7.72123719,133.99,133.95,0.7]
[1764003127704,8.44123719,133.98,133.94,7.46586935]
[1764003127910,7.72123719,133.98,133.93,18.09746709]
[1764003128213,7.72123719,133.98,133.94,0.7]
[1764003129112,7.72123719,133.95,133.91,8.16749132]
[1764003129614,7.72123719,133.95,133.92,0.7]
[1764003130014,7.72123719,133.96,133.92,8.1668327]
[1764003130307,7.72123719,133.98,133.93,0.14216157]
[1764003130511,7.72123719,133.96,133.92,0.7]
[1764003130697,12.1352118,133.96,133.91,18.09867366]
[1764003130898,12.1352118,133.96,133.92,0.7]
[1764003131297,12.1352118,133.97,133.92,0.7]
[1764003131496,12.1352118,133.95,133.92,0.7]
[1764003131695,12.1352118,133.93,133.9,8.16804291]
[1764003132219,12.1352118,133.94,133.9,8.16804291]
[1764003132394,12.1352118,133.94,133.9,0.7]
[1764003132714,12.1352118,133.93,133.89,11.52867876]
[1764003133026,12.1352118,133.91,133.88,7.66918124]
[1764003133187,12.1352118,133.9,133.88,7.66918124]
[1764003133390,12.1352118,133.9,133.88,0.2]
[1764003134701,12.1352118,133.91,133.88,0.2]
[1764003135109,12.1352118,133.89,133.88,0.2]
[1764003135492,12.1352118,133.91,133.88,0.9]
[1764003135803,4.08,133.93,133.88,7.66932414]
[1764003136003,12.1352118,133.92,133.89,0.7]
[1764003136390,12.1352118,133.92,133.89,8.16878075]
[1764003136589,12.1352118,133.92,133.88,7.6691506]
[1764003136796,12.1352118,133.92,133.86,0.2]
[1764003136797,12.1352118,133.89,133.86,0.2]
[1764003136993,12.1352118,133.87,133.86,0.2]
[1764003137405,16.308864,133.91,133.86,0.2]
[1764003137406,17.028864,133.91,133.86,0.2]
[1764003137722,12.1352118,133.88,133.86,0.9]
[1764003138619,12.1352118,133.87,133.86,0.2]
[1764003138801,0.72,133.9,133.86,0.2]
[1764003139000,0.72,133.9,133.86,0.9]
[1764003139713,12.1352118,133.87,133.86,0.2]
[1764003140630,12.1352118,133.89,133.86,0.9]
[1764003141120,12.1352118,133.88,133.86,0.9]
[1764003141323,12.1352118,133.88,133.86,0.2]
[1764003141629,12.1352118,133.87,133.86,0.2]
[1764003141835,12.1352118,133.87,133.81,10.48882769]
[1764003141996,16.308864,133.89,133.81,9.78882769]
[1764003142204,16.308864,133.89,133.82,0.7]
[1764003142410,12.1352118,133.87,133.82,0.7]
[1764003142932,12.1352118,133.87,133.83,26.15258163]
[1764003143452,16.308864,133.89,133.84,0.71]
[1764003143453,12.1352118,133.88,133.84,0.71]
[1764003144023,12.1352118,133.87,133.84,0.71]
[1764003144223,12.1352118,133.87,133.84,8.1814715]
[1764003144425,16.308864,133.89,133.84,8.1814715]
[1764003144614,12.1352118,133.88,133.84,8.1814715]
[1764003145544,0.7,133.95,133.85,0.71]
[1764003145749,12.1352118,133.93,133.87,12.27737337]
[1764003146049,12.1352118,133.92,133.87,0.14216157]
[1764003146272,12.1352118,133.92,133.88,7.46937556]
[1764003146549,12.1352118,133.95,133.89,12.1352118]
[1764003146754,12.1352118,133.95,133.89,12.8452118]
[1764003147239,12.1352118,133.91,133.88,7.46937556]
[1764003148040,12.1352118,133.93,133.88,7.46937556]
[1764003148249,12.1352118,133.93,133.88,8.17937556]
[1764003148431,12.1352118,133.92,133.88,26.85281446]
[1764003148840,12.1352118,133.92,133.88,8.17937556]
[1764003149045,12.1352118,133.92,133.86,26.23985326]
[1764003149046,12.1352118,133.9,133.86,26.23985326]
[1764003149231,12.1352118,133.91,133.86,24.3758839]
[1764003149426,3.36,133.94,133.87,12.8452118]
[1764003149623,12.1352118,133.92,133.87,0.71]
[1764003150324,12.1352118,133.92,133.88,7.46937556]
[1764003150644,12.1352118,133.9,133.87,0.71]
[1764003150815,12.1352118,133.89,133.85,7.47086429]
[1764003151026,12.1352118,133.88,133.85,7.47086429]
[1764003151257,12.1352118,133.88,133.84,8.18138148]
[1764003151462,12.1352118,133.88,133.85,16.308864]
[1764003151637,12.1352118,133.87,133.84,7.47138148]
[1764003151962,12.1352118,133.87,133.82,30.2235474]
[1764003152139,12.1352118,133.87,133.85,16.308864]
[1764003152349,3.36,133.9,133.85,16.308864]
[1764003152350,12.1352118,133.88,133.85,16.308864]
[1764003153169,3.36,133.9,133.84,7.47157282]
[1764003153356,3.36,133.9,133.84,16.308864]
[1764003153357,12.1352118,133.88,133.84,16.308864]
[1764003153553,12.1352118,133.87,133.84,16.308864]
[1764003154077,12.1352118,133.88,133.84,17.018864]
[1764003154448,12.1352118,133.89,133.85,7.47104968]
[1764003154793,12.1352118,133.88,133.85,7.47104968]
[1764003155268,12.1352118,133.88,133.84,23.78029736]
[1764003155441,12.1352118,133.86,133.82,8.18247439]
[1764003155641,12.1352118,133.86,133.8,12.3352118]
[1764003155642,3.36,133.86,133.8,0.2]
[1764003155849,12.1352118,133.82,133.8,7.67376833]
[1764003156176,12.1352118,133.82,133.8,0.2]
[1764003156344,12.1352118,133.81,133.8,0.2]
[1764003157273,12.1352118,133.82,133.8,0.2]
[1764003157472,28.4440758,133.84,133.8,7.6737525]
[1764003157679,28.4440758,133.84,133.8,0.2]
[1764003157880,28.4440758,133.84,133.8,7.67367238]
[1764003158072,29.1440758,133.84,133.8,0.2]
[1764003158284,12.1352118,133.82,133.8,0.2]
[1764003159559,12.1352118,133.82,133.8,7.67380658]
[1764003159864,3.36,133.82,133.74,0.1]
[1764003160065,16.308864,133.78,133.67,0.71]
[1764003160276,12.1352118,133.72,133.68,0.71]
[1764003160466,12.1352118,133.74,133.68,20.32539832]
[1764003160679,12.1352118,133.76,133.7,12.1352118]
[1764003160859,16.308864,133.8,133.71,21.92403949]
[1764003161059,12.1352118,133.78,133.72,12.1352118]
[1764003161264,3.36,133.8,133.73,22.06620106]
[1764003161594,15.4952118,133.8,133.74,12.1352118]
[1764003161770,15.4952118,133.8,133.74,12.8452118]
[1764003162094,12.1352118,133.75,133.72,16.308864]
[1764003162261,12.1352118,133.73,133.71,0.71]
[1764003162460,12.1352118,133.73,133.69,24.49849409]
[1764003162660,12.1352118,133.73,133.7,0.71]
[1764003163258,12.1352118,133.74,133.68,12.1352118]
[1764003163460,12.1352118,133.74,133.68,16.308864]
[1764003163684,0.59,133.76,133.69,4.07]
[1764003163989,12.1352118,133.71,133.67,0.71]
[1764003164200,12.1352118,133.7,133.67,0.71]
[1764003164364,12.1352118,133.7,133.67,8.19110794]
[1764003164670,12.1352118,133.69,133.66,0.2]
[1764003165064,12.1352118,133.68,133.66,0.2]
[1764003165277,38.23290349,133.74,133.66,8.39164827]
[1764003165278,16.308864,133.71,133.66,8.39164827]
[1764003165492,3.50216157,133.75,133.7,9.78882769]
[1764003165493,12.1352118,133.75,133.7,9.78882769]
[1764003165691,12.1352118,133.76,133.71,12.1352118]
[1764003165864,3.36,133.78,133.71,12.8452118]
[1764003166061,12.1352118,133.77,133.72,0.71]
[1764003166263,3.36,133.78,133.72,0.71]
[1764003166480,0.59,133.77,133.71,7.47887218]
[1764003166764,12.1352118,133.75,133.71,7.47887218]
[1764003167409,12.1352118,133.75,133.71,8.15887218]
[1764003167716,12.1352118,133.76,133.72,0.68]
[1764003167916,12.1352118,133.75,133.72,0.68]
[1764003168122,19.668864,133.78,133.72,0.68]
[1764003168280,12.1352118,133.77,133.72,0.68]
[1764003168605,12.1352118,133.77,133.73,7.47775368]
[1764003168823,12.1352118,133.78,133.73,19.61296548]
[1764003168999,12.1352118,133.81,133.75,12.1352118]
[1764003169183,12.1352118,133.82,133.76,22.06620106]
[1764003169383,12.1352118,133.79,133.76,0.68]
[1764003169606,12.1352118,133.8,133.76,0.68]
[1764003170714,0.59,133.82,133.76,0.68]
[1764003170715,12.1352118,133.79,133.76,0.68]
[1764003171014,12.1352118,133.78,133.74,3.50216157]
[1764003171191,12.1352118,133.78,133.74,4.18216157]
[1764003171381,12.1352118,133.79,133.75,0.68]
[1764003171586,12.1352118,133.8,133.75,12.8152118]
[1764003171818,12.1352118,133.81,133.76,12.1352118]
[1764003172111,16.898864,133.83,133.76,12.1352118]
[1764003172112,12.1352118,133.83,133.77,12.1352118]
[1764003172324,12.1352118,133.81,133.77,0.68]
[1764003172514,12.1352118,133.8,133.77,0.68]
[1764003172900,12.1352118,133.81,133.77,8.15517502]
[1764003173101,12.1352118,133.82,133.77,8.15517502]
[1764003173300,12.1352118,133.81,133.77,8.16517502]
[1764003173804,12.1352118,133.8,133.77,0.69]
[1764003174906,12.1352118,133.8,133.77,8.16539766]
[1764003175103,12.1352118,133.81,133.77,7.47539766]
[1764003175417,12.1352118,133.81,133.77,8.16539766]
[1764003176029,0.59,133.83,133.77,0.69]
[1764003176221,12.1352118,133.79,133.77,0.69]
[1764003176402,12.1352118,133.79,133.76,16.308864]
[1764003176606,12.1352118,133.79,133.76,16.998864]
[1764003176805,12.1352118,133.79,133.76,0.69]
[1764003177215,12.1352118,133.79,133.75,16.308864]
[1764003177400,12.1352118,133.78,133.75,16.998864]
[1764003177937,12.1352118,133.76,133.72,4.19216157]
[1764003178231,12.1352118,133.81,133.76,16.308864]
[1764003178595,12.1352118,133.81,133.77,0.69]
[1764003178796,12.1352118,133.81,133.78,7.47495888]
[1764003179002,12.1352118,133.81,133.77,8.1652767]
[1764003179199,12.1352118,133.8,133.77,0.69]
[1764003179531,12.1352118,133.81,133.78,0.69]
[1764003179735,12.1352118,133.82,133.78,0.69]
[1764003180308,3.95,133.84,133.78,0.69]
[1764003180513,12.1352118,133.83,133.79,9.78882769]
[1764003181032,12.1352118,133.83,133.8,0.69]
[1764003181214,12.1352118,133.82,133.77,0.83216157]
[1764003181418,12.7252118,133.82,133.78,16.308864]
[1764003181624,12.1352118,133.81,133.78,16.308864]
[1764003181828,12.1352118,133.82,133.78,16.998864]
[1764003182328,12.1352118,133.82,133.79,0.69]
[1764003182730,3.36,133.84,133.8,16.308864]
[1764003182935,12.1352118,133.83,133.8,16.308864]
[1764003183114,12.1352118,133.82,133.8,16.998864]
[1764003183309,0.59,133.89,133.81,0.69]
[1764003183844,12.1352118,133.86,133.81,0.69]
[1764003184212,12.1352118,133.85,133.81,0.69]
[1764003184411,12.1352118,133.83,133.82,16.308864]
[1764003185345,12.1352118,133.83,133.8,16.308864]
[1764003185513,12.1352118,133.83,133.8,16.998864]
[1764003185916,12.1352118,133.84,133.81,0.69]
[1764003186135,12.1352118,133.84,133.8,16.308864]
[1764003186349,12.1352118,133.84,133.8,16.998864]
[1764003187017,12.1352118,133.85,133.81,16.998864]
[1764003187251,0.59,133.87,133.81,16.998864]
[1764003187435,12.1352118,133.89,133.83,12.1352118]
[1764003187726,12.1352118,133.88,133.82,25.97403949]
[1764003187930,12.1352118,133.88,133.83,0.69]
[1764003188134,12.1352118,133.88,133.85,16.308864]
[1764003188426,12.1352118,133.89,133.84,21.92403949]
[1764003188625,12.1352118,133.9,133.84,21.92403949]
[1764003188829,12.1352118,133.9,133.85,0.69]
[1764003189129,12.1352118,133.89,133.85,0.69]
[1764003189335,12.1352118,133.88,133.84,9.78882769]
[1764003189531,12.1352118,133.87,133.83,9.78882769]
[1764003189745,12.1352118,133.87,133.84,0.69]
[1764003189942,0.59,133.94,133.86,16.308864]
[1764003190253,0.2,133.96,133.87,9.78882769]
[1764003190254,12.1352118,133.92,133.87,9.78882769]
[1764003190544,7.74986226,133.91,133.86,16.308864]
[1764003190749,7.74986226,133.9,133.86,16.308864]
[1764003190936,7.74986226,133.9,133.85,11.52056965]
[1764003191338,7.74986226,133.9,133.86,0.69]
[1764003191942,7.74986226,133.91,133.86,0.69]
[1764003192751,8.33986226,133.91,133.86,0.69]
[1764003192932,7.74986226,133.9,133.86,0.69]
[1764003193128,7.74986226,133.9,133.86,8.16016502]
[1764003193839,7.74986226,133.9,133.87,0.69]
[1764003194037,7.74986226,133.91,133.87,0.69]
[1764003195343,0.59,133.93,133.87,0.69]
[1764003195655,7.74986226,133.9,133.85,4.05]
[1764003195860,0.59,133.93,133.86,0.69]
[1764003196035,7.74986226,133.9,133.86,0.69]
[1764003197652,7.74986226,133.9,133.86,8.16039632]
[1764003198054,7.74986226,133.9,133.86,0.69]
[1764003199165,7.74986226,133.9,133.84,16.45102557]
[1764003199367,7.74986226,133.86,133.82,0.69]
[1764003199535,7.74986226,133.84,133.8,9.78882769]
[1764003199877,7.74986226,133.84,133.81,0.69]
[1764003200198,8.33986226,133.86,133.81,0.69]
[1764003200533,7.74986226,133.85,133.8,9.78882769]
[1764003200735,7.74986226,133.84,133.8,9.78882769]
[1764003200970,7.74986226,133.84,133.8,10.47882769]
[1764003201130,7.74986226,133.84,133.81,0.69]
[1764003201539,0.59,133.86,133.81,0.69]
[1764003201750,7.74986226,133.84,133.81,8.16327135]
[1764003202034,7.74986226,133.85,133.81,8.16327135]
[1764003203749,16.898864,133.89,133.82,0.66]
[1764003204064,7.74986226,133.86,133.82,0.66]
[1764003205863,7.74986226,133.86,133.82,8.13264707]
[1764003206555,7.74986226,133.86,133.83,0.66]
[1764003206865,7.74986226,133.86,133.82,7.47264707]
[1764003207273,7.74986226,133.86,133.82,8.13264707]
[1764003208077,7.74986226,133.84,133.79,16.968864]
[1764003208247,7.74986226,133.84,133.79,24.44314047]
[1764003208456,7.74986226,133.85,133.8,0.66]
[1764003208776,7.74986226,133.85,133.8,10.44882769]
[1764003209366,7.74986226,133.85,133.81,0.66]
[1764003210043,7.74986226,133.85,133.81,8.13327475]
[1764003210246,7.74986226,133.85,133.81,0.66]
[1764003210453,16.308864,133.86,133.8,17.26244814]
[1764003210653,16.898864,133.87,133.82,0.66]
[1764003210861,7.74986226,133.85,133.82,0.66]
[1764003211053,7.74986226,133.85,133.8,17.92244814]
[1764003211244,7.74986226,133.85,133.81,0.66]
[1764003212262,0.59,133.86,133.81,0.66]
[1764003212435,3.36,133.88,133.81,8.13324973]
[1764003212640,7.74986226,133.85,133.81,8.13324973]
[1764003212844,7.74986226,133.85,133.82,0.66]
[1764003214347,7.74986226,133.86,133.82,8.1326832]
[1764003214748,7.89202383,133.92,133.85,7.74986226]
[1764003214749,7.74986226,133.92,133.85,7.74986226]
[1764003214947,0.59,133.94,133.87,9.78882769]
[1764003215145,7.74986226,133.92,133.87,9.78882769]
[1764003215452,0.59,133.94,133.88,8.40986226]
[1764003215453,7.74986226,133.94,133.88,8.40986226]
[1764003215650,7.74986226,133.94,133.89,0.66]
[1764003216071,8.53986226,133.96,133.9,7.74986226]
[1764003216285,0.2,133.96,133.92,7.74986226]
[1764003216578,0.2,133.96,133.91,33.84755395]
[1764003216784,0.2,133.96,133.92,0.66]
[1764003217578,0.2,133.96,133.93,7.46658702]
[1764003217780,0.2,133.96,133.94,0.66]
[1764003219293,7.94986226,133.96,133.92,0.66]
[1764003219462,7.94986226,133.96,133.93,0.66]
[1764003219861,0.59,133.95,133.89,0.66]
[1764003220077,0.2,133.96,133.94,9.78882769]
[1764003220288,0.2,133.96,133.95,10.44882769]
[1764003220707,0.2,133.96,133.95,18.34085152]
[1764003221081,0.2,133.96,133.95,10.59098926]
[1764003221280,0.2,133.96,133.95,18.34085152]
[1764003221667,0.2,133.96,133.95,25.80632371]
[1764003222067,0.2,133.96,133.95,29.16632371]
[1764003224391,0.2,133.96,133.95,21.41646145]
[1764003224594,0.2,133.96,133.95,29.16632371]
[1764003228662,0.2,133.96,133.95,18.05646145]
[1764003228810,0.2,133.96,133.95,17.91429988]
[1764003229105,0.2,133.96,133.95,0.7]
[1764003229487,0.2,133.96,133.93,17.95527083]
[1764003229689,0.2,133.96,133.94,0.7]
[1764003230487,0.2,133.96,133.94,8.16570727]
[1764003230714,0.59,133.95,133.91,0.7]
[1764003230905,7.74986226,133.93,133.88,8.44986226]
[1764003231105,7.74986226,133.94,133.89,9.78882769]
[1764003231304,7.74986226,133.94,133.89,21.59868995]
[1764003231617,8.33986226,133.95,133.9,0.7]
[1764003231815,7.74986226,133.94,133.9,0.7]
[1764003232535,7.74986226,133.94,133.9,8.16778452]
[1764003232831,0.2,133.96,133.9,0.7]
[1764003232832,7.94986226,133.96,133.9,0.7]
[1764003233035,7.74986226,133.93,133.9,0.7]
[1764003233239,7.74986226,133.92,133.88,0.66]
[1764003234414,7.74986226,133.92,133.88,8.12914059]
[1764003235317,7.74986226,133.93,133.89,0.66]
[1764003236168,7.74986226,133.92,133.89,0.66]
[1764003236431,7.74986226,133.92,133.89,8.12881554]
[1764003237642,7.74986226,133.93,133.89,7.46881554]
[1764003237842,7.74986226,133.94,133.9,0.66]
[1764003238141,7.74986226,133.95,133.91,9.78882769]
[1764003238503,7.74986226,133.94,133.91,9.78882769]
[1764003238711,7.74986226,133.93,133.89,24.43766965]
[1764003239836,8.33986226,133.93,133.89,0.66]
[1764003240042,7.74986226,133.91,133.88,9.78882769]
[1764003240347,0.2,133.96,133.88,9.78882769]
[1764003240348,0.59,133.95,133.88,10.44882769]
[1764003240558,7.74986226,133.92,133.89,7.46881768]
[1764003240715,7.74986226,133.92,133.88,17.9180738]
[1764003240913,7.74986226,133.91,133.88,10.44882769]
[1764003241556,7.74986226,133.89,133.84,8.13143732]
[1764003241852,7.74986226,133.87,133.83,0.66]
[1764003242672,7.74986226,133.87,133.83,8.13191835]
[1764003243537,7.74986226,133.86,133.83,0.66]
[1764003243738,8.33986226,133.87,133.83,8.1319783]
[1764003243962,24.05872626,133.92,133.83,8.1319783]
[1764003243963,7.74986226,133.88,133.83,8.1319783]
[1764003244175,7.74986226,133.9,133.84,18.19868995]
[1764003244553,7.74986226,133.9,133.85,8.13067836]
[1764003244754,7.74986226,133.89,133.85,8.13067836]
[1764003245341,19.668864,133.92,133.86,10.44882769]
[1764003245567,7.74986226,133.91,133.86,10.44882769]
[1764003245946,8.33986226,133.91,133.86,10.44882769]
[1764003246349,8.33986226,133.9,133.86,10.44882769]
[1764003246565,7.74986226,133.9,133.86,17.91907493]
[1764003246869,8.33986226,133.9,133.86,17.91907493]
[1764003249391,7.74986226,133.89,133.86,9.78882769]
[1764003250712,7.74986226,133.89,133.85,8.13089953]
[1764003251015,7.74986226,133.88,133.85,8.1310325]
[1764003251242,7.74986226,133.9,133.86,0.66]
[1764003251389,7.74986226,133.89,133.86,0.66]
[1764003251781,7.74986226,133.89,133.85,9.78882769]
[1764003251782,8.33986226,133.89,133.85,9.78882769]
[1764003251982,7.74986226,133.89,133.86,0.66]
[1764003252183,8.33986226,133.89,133.85,10.44882769]
[1764003252609,12.1503835,133.87,133.84,9.78882769]
[1764003252809,12.1503835,133.86,133.83,8.13216618]
[1764003253016,12.1503835,133.87,133.83,8.13216618]
[1764003253311,12.1503835,133.87,133.83,0.66]
[1764003253491,12.1503835,133.86,133.83,0.66]
[1764003253691,12.1503835,133.86,133.82,3.36]
[1764003254011,12.7403835,133.86,133.82,11.49265263]
[1764003254316,16.308864,133.91,133.83,0.66]
[1764003254317,12.1503835,133.87,133.83,0.66]
[1764003254628,12.1503835,133.88,133.83,8.13183356]
[1764003254787,12.1503835,133.87,133.83,8.13183356]
[1764003255220,12.1503835,133.87,133.84,0.66]
[1764003255839,12.1503835,133.87,133.82,10.83254278]
[1764003256138,12.1503835,133.86,133.83,0.66]
[1764003256845,12.7403835,133.87,133.83,0.66]
[1764003257029,12.1503835,133.87,133.83,0.66]
[1764003257228,12.1503835,133.87,133.83,8.13211019]
[1764003257646,12.1503835,133.89,133.84,10.44882769]
[1764003258056,12.7403835,133.89,133.85,0.66]
[1764003258433,12.1503835,133.88,133.84,9.78882769]
[1764003258745,12.1503835,133.88,133.84,17.92025653]
[1764003259448,12.1503835,133.88,133.85,0.66]
[1764003259647,0.59,133.9,133.85,0.66]
[1764003259818,12.1503835,133.89,133.85,0.66]
[1764003260137,12.1503835,133.87,133.84,17.26025653]
[1764003260337,12.1503835,133.87,133.84,17.92025653]
[1764003260549,12.1503835,133.88,133.85,0.66]
[1764003261051,0.59,133.9,133.85,0.66]
[1764003261244,12.1503835,133.89,133.85,0.66]
[1764003261632,0.59,133.9,133.85,0.66]
[1764003261944,12.1503835,133.89,133.85,0.66]
[1764003262148,0.59,133.9,133.85,0.66]
[1764003262149,12.1503835,133.88,133.85,0.66]
[1764003263626,12.7403835,133.89,133.85,0.66]
[1764003264027,12.1503835,133.88,133.85,0.66]
[1764003264326,12.7403835,133.89,133.85,0.66]
[1764003264527,0.59,133.91,133.85,8.13098434]
[1764003264730,15.5103835,133.92,133.86,21.93921119]
[1764003264926,15.5103835,133.92,133.87,0.7]
[1764003265161,15.5103835,133.92,133.87,8.16951192]
[1764003265529,16.1003835,133.92,133.88,0.7]
[1764003265753,16.1003835,133.92,133.87,0.7]
[1764003266062,12.1503835,133.91,133.87,0.7]
[1764003266365,12.7403835,133.91,133.87,0.7]
[1764003266860,3.36,133.92,133.87,12.8503835]
[1764003267046,12.1503835,133.94,133.89,7.46881768]
[1764003267548,12.7403835,133.94,133.9,0.7]
[1764003268237,0.59,133.93,133.81,50.0]
[1764003268439,29.65769169,133.96,133.87,16.308864]
[1764003268638,12.1503835,133.94,133.88,21.93921119]
[1764003268841,15.7103835,133.96,133.9,21.93921119]
[1764003269043,16.3003835,133.96,133.9,29.40722576]
[1764003269240,12.1503835,133.95,133.9,17.95684226]
[1764003269633,0.59,133.95,133.91,0.7]
[1764003269838,0.2,133.96,133.93,28.4592475]
[1764003270031,0.2,133.96,133.95,28.4592475]
[1764003270240,0.2,133.96,133.95,31.96140907]
[1764003270462,0.2,133.96,133.95,32.66140907]
[1764003270959,0.2,134.0,133.96,0.14216157]
[1764003271263,0.2,134.0,133.98,7.46380056]
[1764003271559,0.2,134.0,133.97,20.31451428]
[1764003271761,0.2,134.0,133.98,0.7]
[1764003271962,0.2,134.0,133.97,0.7]
[1764003273251,0.2,134.04,134.01,0.14216157]
[1764003273440,0.2,134.04,134.03,22.08137276]
[1764003273815,0.2,134.04,134.03,38.39023676]
[1764003273950,0.2,134.1,134.03,22.78137276]
[1764003274271,0.2,134.1,134.05,0.14216157]
[1764003274453,0.2,134.1,134.07,12.1503835]
[1764003274765,0.2,134.1,134.06,16.2103835]
[1764003274971,0.2,134.1,134.07,0.7]
[1764003275266,0.2,134.1,134.07,8.15879018]
[1764003275684,0.2,134.1,134.07,30.24016294]
[1764003275844,0.2,134.1,134.07,18.08977944]
[1764003276044,0.2,134.1,134.07,30.24016294]
[1764003277175,0.2,134.1,134.07,21.44977944]
[1764003277373,0.2,134.1,134.09,26.09769169]
[1764003277903,0.2,134.1,134.07,4.06]
[1764003278763,0.2,134.1,134.07,3.36]
[1764003278989,0.2,134.1,134.08,12.8503835]
[1764003279378,0.2,134.1,134.08,8.158178]
[1764003279970,0.2,134.1,134.08,0.7]
[1764003280191,0.2,134.1,134.07,26.09769169]
[1764003280367,0.2,134.1,134.09,3.36]
[1764003281967,0.2,134.1,134.09,13.99098926]
[1764003282290,0.2,134.1,134.09,21.44866693]
[1764003282476,0.2,134.1,134.09,13.27098926]
[1764003282878,0.2,134.1,134.07,23.76761689]
[1764003283069,0.2,134.1,134.08,13.27098926]
[1764003283264,0.2,134.1,134.02,18.65261743]
[1764003283467,0.2,134.1,134.05,12.1503835]
[1764003283822,0.2,134.1,134.07,9.78882769]
[1764003284100,0.2,134.1,134.06,0.7]
[1764003284272,0.9,134.1,134.07,3.34]
[1764003284475,13.0503835,134.1,134.07,3.34]
[1764003284704,0.7,134.09,134.06,3.34]
[1764003284995,13.0503835,134.1,134.06,4.04]
[1764003285385,12.1503835,134.08,134.03,0.7]
[1764003285691,12.1503835,134.04,133.99,10.80324352]
[1764003285897,0.7,134.03,134.02,16.308864]
[1764003286193,12.8503835,134.04,134.02,16.308864]
[1764003286494,12.8503835,134.04,134.0,10.48882769]
[1764003286795,0.67,134.03,134.0,26.09769169]
[1764003287180,0.67,134.03,133.93,0.67]
[1764003287181,12.1503835,134.01,133.93,0.67]
[1764003287495,12.8203835,134.01,133.94,20.28637339]
[1764003287695,12.8203835,134.01,133.95,13.79882769]
[1764003288493,12.8203835,134.0,133.95,0.67]